fUST/lending_fUST_20240226
["ID","MTS","AMOUNT","RATE_DAILY","PERIOD"]
[315176224,1708902644618,-500.0,0.00019452,2]
[315176225,1708902644627,-657.4,0.00019452,2]
[315176226,1708902644636,-510.22306871,0.00019452,2]
[315176227,1708902644645,-500.0,0.00019452,2]
[315176228,1708902644654,-500.0,0.00019452,2]
[315176229,1708902644663,-500.0,0.00019452,2]
[315176230,1708902644672,-592.55105003,0.00019452,2]
[315176231,1708902644682,-2184.87,0.00019452,2]
[315176232,1708902644691,-500.0,0.00019452,2]
[315176233,1708902644700,-501.27644702,0.00019452,2]
[315176234,1708902644710,-1528.56,0.00019452,2]
[315176235,1708902644719,-500.0,0.00019452,2]
[315176236,1708902644728,-500.0,0.00019452,2]
[315176238,1708902644820,-500.6752788,0.00019452,2]
[315176239,1708902644829,-7155.44,0.00019452,2]
[315176240,1708902644838,-500.0,0.00019452,2]
[315176241,1708902644847,-500.0,0.00019452,2]
[315176242,1708902644856,-4006.85,0.00019452,2]
[315176243,1708902644865,-500.0,0.00019452,2]
[315176244,1708902644875,-10149.32,0.00019452,2]
[315176245,1708902644884,-1069.12,0.00019452,2]
[315176246,1708902644893,-500.0,0.00019452,2]
[315176247,1708902644902,-500.0,0.00019452,2]
[315176248,1708902644912,-19722.01,0.00019452,2]
[315176249,1708902644921,-500.0,0.00019452,2]
[315176250,1708902644930,-614.95785219,0.00019452,2]
[315176251,1708902644940,-500.0,0.00019452,2]
[315176252,1708902644949,-2952.58,0.00019452,2]
[315176253,1708902644958,-2723.85,0.00019452,2]
[315176254,1708902644967,-500.0,0.00019452,2]
[315176255,1708902644976,-565.43,0.00019452,2]
[315176256,1708902644985,-500.0,0.00019452,2]
[315176257,1708902644994,-1349.15,0.00019452,2]
[315176258,1708902645003,-500.0,0.00019452,2]
[315176259,1708902645013,-500.0,0.00019452,2]
[315176260,1708902645022,-500.0,0.00019452,2]
[315176261,1708902645031,-500.0,0.00019452,2]
[315176262,1708902645041,-500.0,0.00019452,2]
[315176263,1708902645050,-182.51135653,0.00019462,2]
[315176264,1708902645063,-7321.61669943,0.00019464,2]
[315176265,1708902645072,-182.51135653,0.00019476,2]
[315176266,1708902645081,-182.51135653,0.00019479,2]
[315176267,1708902645090,-7321.61669943,0.0001948,2]
[315176268,1708902645100,-7321.61669943,0.0001949,2]
[315176269,1708902645109,-153.0,0.000195,2]
[315176270,1708902645118,-1002.29934527,0.00019526,2]
[315176271,1708902645127,-3092.28479217,0.00019527,2]
[315176272,1708902645137,-3231.23979694,0.00019527,2]
[315176273,1708902645146,-500.0,0.00019615,2]
[315176274,1708902645155,-500.0,0.00019615,2]
[315176275,1708902645164,-500.0,0.00019615,2]
[315176276,1708902645174,-500.0,0.00019615,2]
[315176277,1708902645183,-500.0,0.00019615,2]
[315176278,1708902645192,-500.0,0.00019615,2]
[315176279,1708902645202,-500.0,0.00019615,2]
[315176280,1708902645210,-276000.0,0.00019616,2]
[315176281,1708902645219,-166.666666,0.00019627,2]
[315176282,1708902645229,-5523.32487849,0.000197,2]
[315176283,1708902645239,-5523.32487849,0.000197,2]
[315176284,1708902645249,-5523.32487849,0.000197,2]
[315176285,1708902645259,-500.0,0.00019725,2]
[315176286,1708902645269,-422.02967842,0.00019725,2]
[315176287,1708902645279,-500.0,0.00019726,2]
[315176288,1708902645289,-500.0,0.00019726,2]
[315176289,1708902645298,-827.46,0.00019726,2]
[315176290,1708902645307,-500.0,0.00019726,2]
[315176291,1708902645316,-500.0,0.00019726,2]
[315176292,1708902645325,-438.44196691,0.00019726,2]
[315176293,1708902645334,-501.59136464,0.00019726,2]
[315176294,1708902645343,-500.0,0.00019726,2]
[315176295,1708902645352,-501.97126216,0.00019726,2]
[315176296,1708902645361,-500.0,0.00019726,2]
[315176297,1708902645370,-500.0,0.00019726,2]
[315176298,1708902645379,-500.0,0.00019726,2]
[315176299,1708902645388,-500.0,0.00019726,2]
[315176300,1708902645398,-500.0,0.00019726,2]
[315176301,1708902645407,-500.0,0.00019726,2]
[315176302,1708902645416,-500.0,0.00019726,2]
[315176303,1708902645425,-500.0,0.00019726,2]
[315176304,1708902645434,-500.0,0.00019726,2]
[315176305,1708902645443,-500.0,0.00019726,2]
[315176306,1708902645452,-580.33377314,0.00019726,2]
[315176307,1708902645461,-500.0,0.00019726,2]
[315176308,1708902645470,-500.0,0.00019726,2]
[315176309,1708902645479,-500.0,0.00019726,2]
[315176310,1708902645489,-500.0,0.00019726,2]
[315176311,1708902645498,-500.0,0.00019726,2]
[315176312,1708902645507,-1299.75,0.00019726,2]
[315176313,1708902645516,-500.0,0.00019726,2]
[315176314,1708902645526,-500.0,0.00019726,2]
[315176315,1708902645535,-500.0,0.00019726,2]
[315176316,1708902645547,-500.0,0.00019726,2]
[315176317,1708902645557,-513.35654408,0.00019726,2]
[315176318,1708902645566,-500.0,0.00019726,2]
[315176319,1708902645575,-500.72533949,0.00019726,2]
[315176320,1708902645583,-500.0,0.00019726,2]
[315176321,1708902645593,-500.0,0.00019726,2]
[315176322,1708902645602,-500.0,0.00019726,2]
[315176323,1708902645611,-500.0,0.00019726,2]
[315176324,1708902645619,-500.0,0.00019726,2]
[315176325,1708902645628,-183.66690756,0.00019726,2]
[315176326,1708902645638,-500.0,0.00019726,2]
[315176327,1708902645647,-698.4,0.00019726,2]
[315176328,1708902645656,-500.0,0.00019726,2]
[315176329,1708902645665,-1257.12,0.00019726,2]
[315176330,1708902645674,-405.33060812,0.00019726,2]
[315176331,1708902645683,-500.0,0.00019726,2]
[315176332,1708902645694,-500.0,0.00019726,2]
[315176333,1708902645703,-500.0,0.00019726,2]
[315176334,1708902645712,-439.43556303,0.00019726,2]
[315176335,1708902645721,-500.0,0.00019726,2]
[315176336,1708902645730,-596.37,0.00019726,2]
[315176337,1708902645739,-1737.0,0.00019726,2]
[315176338,1708902645748,-500.76231517,0.00019726,2]
[315176339,1708902645757,-500.0,0.00019726,2]
[315176340,1708902645766,-500.0,0.00019726,2]
[315176341,1708902645775,-501.38504518,0.00019726,2]
[315176342,1708902645784,-500.0,0.00019726,2]
[315176343,1708902645794,-500.0,0.00019726,2]
[315176345,1708902645804,-500.0,0.00019726,2]
[315176346,1708902645816,-500.0,0.00019726,2]
[315176347,1708902645825,-202.3141113,0.00019726,2]
[315176348,1708902645834,-500.0,0.00019726,2]
[315176349,1708902645842,-500.0,0.00019726,2]
[315176350,1708902645851,-500.0,0.00019726,2]
[315176351,1708902645860,-500.0,0.00019726,2]
[315176352,1708902645868,-500.0,0.00019726,2]
[315176353,1708902645877,-547.29,0.00019726,2]
[315176354,1708902645886,-609.6,0.00019726,2]
[315176355,1708902645896,-500.0,0.00019726,2]
[315176356,1708902645905,-500.0,0.00019726,2]
[315176357,1708902645914,-500.0,0.00019726,2]
[315176358,1708902645924,-500.0,0.00019726,2]
[315176359,1708902645933,-500.0,0.00019726,2]
[315176360,1708902645943,-500.0,0.00019726,2]
[315176361,1708902645951,-500.0,0.00019726,2]
[315176362,1708902645960,-500.92520509,0.00019726,2]
[315176364,1708902645969,-209.1137891,0.00019726,2]
[315176366,1708902645978,-500.0,0.00019726,2]
[315176368,1708902645987,-500.0,0.00019726,2]
[315176370,1708902645996,-500.0,0.00019726,2]
[315176371,1708902646005,-2003.63,0.00019726,2]
[315176373,1708902646014,-500.92354226,0.00019726,2]
[315176375,1708902646023,-500.0,0.00019726,2]
[315176377,1708902646033,-500.0,0.00019726,2]
[315176379,1708902646042,-500.0,0.00019726,2]
[315176380,1708902646053,-500.0,0.00019726,2]
[315176381,1708902646063,-1602.03,0.00019726,2]
[315176383,1708902646073,-500.0,0.00019726,2]
[315176385,1708902646081,-500.0,0.00019726,2]
[315176386,1708902646091,-500.0,0.00019726,2]
[315176388,1708902646100,-500.0,0.00019726,2]
[315176390,1708902646109,-375.96413218,0.00019726,2]
[315176391,1708902646118,-500.0,0.00019726,2]
[315176392,1708902646127,-500.0,0.00019726,2]
[315176394,1708902646136,-500.0,0.00019726,2]
[315176395,1708902646146,-500.0,0.00019726,2]
[315176396,1708902646155,-500.0,0.00019726,2]
[315176398,1708902646165,-500.0,0.00019726,2]
[315176399,1708902646174,-645.63309768,0.00019726,2]
[315176400,1708902646183,-151.0,0.00019726,2]
[315176401,1708902646192,-500.0,0.00019726,2]
[315176402,1708902646201,-500.0,0.00019726,2]
[315176403,1708902646211,-500.0,0.00019726,2]
[315176404,1708902646220,-500.0,0.00019726,2]
[315176405,1708902646228,-894.09,0.00019726,2]
[315176406,1708902646237,-500.0,0.00019726,2]
[315176407,1708902646247,-699.94,0.00019726,2]
[315176408,1708902646256,-500.0,0.00019726,2]
[315176409,1708902646265,-500.0,0.00019726,2]
[315176410,1708902646275,-500.0,0.00019726,2]
[315176411,1708902646285,-500.0,0.00019726,2]
[315176412,1708902646294,-2708.56,0.00019726,2]
[315176413,1708902646304,-500.0,0.00019726,2]
[315176414,1708902646313,-500.0,0.00019726,2]
[315176415,1708902646322,-500.39052972,0.00019726,2]
[315176416,1708902646331,-701.44,0.00019726,2]
[315176417,1708902646340,-500.0,0.00019726,2]
[315176418,1708902646349,-500.0,0.00019726,2]
[315176419,1708902646358,-500.0,0.00019726,2]
[315176420,1708902646367,-1401.96,0.00019726,2]
[315176421,1708902646376,-500.0,0.00019726,2]
[315176422,1708902646385,-2668.64,0.00019726,2]
[315176423,1708902646395,-2279.01,0.00019726,2]
[315176424,1708902646404,-500.0,0.00019726,2]
[315176425,1708902646413,-500.0,0.00019726,2]
[315176426,1708902646422,-500.0,0.00019726,2]
[315176427,1708902646431,-1399.05,0.00019726,2]
[315176428,1708902646440,-500.0,0.00019726,2]
[315176429,1708902646449,-770.28,0.00019726,2]
[315176430,1708902646458,-2466.58,0.00019726,2]
[315176431,1708902646467,-500.0,0.00019726,2]
[315176432,1708902646475,-500.0,0.00019726,2]
[315176433,1708902646484,-500.0,0.00019726,2]
[315176434,1708902646493,-1761.63,0.00019726,2]
[315176435,1708902646502,-1000.0,0.00019726,2]
[315176436,1708902646511,-338.43794942,0.00019726,2]
[315176437,1708902646520,-248.03889364,0.00019726,2]
[315176438,1708902646529,-500.0,0.00019726,2]
[315176439,1708902646538,-11068.66,0.00019726,2]
[315176440,1708902646547,-500.0,0.00019726,2]
[315176441,1708902646557,-500.0,0.00019726,2]
[315176442,1708902646565,-1833.77,0.00019726,2]
[315176443,1708902646574,-3907.06,0.00019726,2]
[315176444,1708902646583,-500.0,0.00019726,2]
[315176445,1708902646592,-502.5056057,0.00019726,2]
[315176446,1708902646601,-1004.11866743,0.00019726,2]
[315176447,1708902646610,-501.21839643,0.00019726,2]
[315176448,1708902646619,-500.0,0.00019726,2]
[315176449,1708902646706,-500.0,0.00019726,2]
[315176450,1708902646716,-500.0,0.00019726,2]
[315176451,1708902646725,-500.0,0.00019726,2]
[315176452,1708902646736,-500.0,0.00019726,2]
[315176453,1708902646744,-562.13299876,0.00019726,2]
[315176454,1708902646753,-500.0,0.00019726,2]
[315176455,1708902646762,-19635.66,0.00019726,2]
[315176456,1708902646771,-477.11922857,0.00019726,2]
[315176457,1708902646781,-500.0,0.00019726,2]
[315176458,1708902646790,-500.0,0.00019726,2]
[315176459,1708902646799,-500.0,0.00019726,2]
[315176460,1708902646809,-500.0,0.00019726,2]
[315176461,1708902646818,-1876.15,0.00019726,2]
[315176462,1708902646827,-500.0,0.00019726,2]
[315176463,1708902646837,-500.0,0.00019726,2]
[315176464,1708902646848,-500.0,0.00019726,2]
[315176465,1708902646857,-1960.45,0.00019726,2]
[315176466,1708902646866,-500.0,0.00019726,2]
[315176467,1708902646876,-500.0,0.00019726,2]
[315176468,1708902646884,-500.0,0.00019726,2]
[315176469,1708902646894,-470.59177166,0.00019726,2]
[315176470,1708902646903,-500.0,0.00019726,2]
[315176471,1708902646913,-500.0,0.00019726,2]
[315176472,1708902646923,-657.4,0.00019726,2]
[315176473,1708902646931,-500.0,0.00019726,2]
[315176474,1708902646941,-281.9513627,0.00019726,2]
[315176475,1708902646950,-2184.87,0.00019726,2]
[315176476,1708902646959,-500.0,0.00019726,2]
[315176477,1708902646968,-1528.56,0.00019726,2]
[315176478,1708902646977,-500.0,0.00019726,2]
[315176479,1708902646986,-7155.44,0.00019726,2]
[315176480,1708902646995,-500.0,0.00019726,2]
[315176481,1708902647005,-500.0,0.00019726,2]
[315176482,1708902647014,-4006.85,0.00019726,2]
[315176483,1708902647023,-500.0,0.00019726,2]
[315176484,1708902647032,-10149.32,0.00019726,2]
[315176485,1708902647041,-1069.12,0.00019726,2]
[315176486,1708902647054,-500.0,0.00019726,2]
[315176487,1708902647064,-500.0,0.00019726,2]
[315176488,1708902647073,-19722.01,0.00019726,2]
[315176489,1708902647082,-500.0,0.00019726,2]
[315176490,1708902647091,-2952.58,0.00019726,2]
[315176491,1708902647100,-2723.85,0.00019726,2]
[315176492,1708902647109,-330.48068268,0.00019726,2]
[315176493,1708902647118,-565.43,0.00019726,2]
[315176494,1708902647127,-500.0,0.00019726,2]
[315176495,1708902647136,-1349.15,0.00019726,2]
[315176496,1708902647146,-500.0,0.00019726,2]
[315176497,1708902647155,-500.0,0.00019726,2]
[315176498,1708902647164,-497.77855234,0.00019726,2]
[315176499,1708902647173,-500.0,0.00019726,2]
[315176500,1708902647182,-561.17050029,0.00019726,2]
[315176501,1708902647191,-200.5569553,0.000198,2]
[315176502,1708902647200,-306.0,0.000198,2]
[315176503,1708902647209,-3231.23979688,0.00019842,2]
[315176504,1708902647218,-234.13825762,0.00019998,2]
[315176505,1708902647227,-1412.29479491,0.00019998,2]
[315176506,1708902647238,-1448.31818436,0.00019998,2]
[315176507,1708902647247,-625.44826244,0.00019998,2]
[315176508,1708902647256,-213.02714965,0.00019998,2]
[315176509,1708902647265,-572.38477132,0.00019998,2]
[315176510,1708902647274,-677.415638,0.00019999,2]
[315176511,1708902647283,-500.0,0.00019999,2]
[315176512,1708902647292,-221.69148885,0.00019999,2]
[315176513,1708902647301,-524224.85835121,0.0002,2]
[315176514,1708902647449,-572.75454271,0.0002,2]
[315176515,1708902647460,-9668.19916254,0.0002,2]
[315176516,1708902647612,-3000.82457073,0.0002,2]
[315176517,1708902659137,186.50731048,0.00018133,2]
[315176527,1708903263647,4077.0820675,0.00017971,2]
[315176528,1708903284894,232.912924,0.0001799,2]
[315176540,1708903631470,154.81637835,0.000179,2]
[315176541,1708903709456,417.0,0.00016,10]
[315176593,1708903832729,-155.66717531,0.00018529,2]
[315176594,1708903832738,-635.32659493,0.0001853,2]
[315176595,1708903832748,-194.50075756,0.000189,2]
[315176596,1708903832759,-154.15151217,0.000189,2]
[315176597,1708903832770,-5120.96919775,0.00019,2]
[315176615,1708903839729,-57486.45929129,0.00019,2]
[315176617,1708903839739,-201.09509412,0.00019,2]
[315176619,1708903839748,-3231.23979694,0.00019078,2]
[315176620,1708903839757,-276000.0,0.00019078,2]
[315176621,1708903839766,-500.37578714,0.00019178,2]
[315176622,1708903839775,-525.80205431,0.00019178,2]
[315176623,1708903839786,-243.58118859,0.00019178,2]
[315176624,1708903839794,-332.33924743,0.00019178,2]
[315176626,1708903839803,-500.0,0.00019178,2]
[315176627,1708903839814,-500.0,0.00019178,2]
[315176628,1708903839824,-500.0,0.00019178,2]
[315176629,1708903839834,-1778.66,0.00019178,2]
[315176630,1708903839843,-500.0,0.00019178,2]
[315176631,1708903839853,-500.0,0.00019178,2]
[315176632,1708903839863,-500.0,0.00019178,2]
[315176633,1708903839872,-500.0,0.00019178,2]
[315176634,1708903839881,-396.36419202,0.00019178,2]
[315176635,1708903839891,-500.28098857,0.00019178,2]
[315176636,1708903839900,-500.0,0.00019178,2]
[315176637,1708903839909,-500.0,0.00019178,2]
[315176638,1708903839919,-500.0,0.00019178,2]
[315176639,1708903839928,-500.0,0.00019178,2]
[315176640,1708903839938,-500.0,0.00019178,2]
[315176641,1708903839947,-500.0,0.00019178,2]
[315176642,1708903839957,-500.0,0.00019178,2]
[315176643,1708903839966,-500.0,0.00019178,2]
[315176644,1708903839975,-500.0,0.00019178,2]
[315176645,1708903839984,-500.0,0.00019178,2]
[315176646,1708903839993,-368.47185558,0.00019178,2]
[315176647,1708903840002,-500.0,0.00019178,2]
[315176648,1708903840012,-500.0,0.00019178,2]
[315176649,1708903840150,-500.0,0.00019178,2]
[315176650,1708903840161,-500.0,0.00019178,2]
[315176651,1708903840171,-243.58118859,0.00019178,2]
[315176652,1708903840180,-177.06876316,0.00019178,2]
[315176653,1708903840189,-200.0,0.00019178,2]
[315176654,1708903840198,-500.0,0.00019178,2]
[315176655,1708903840208,-500.0,0.00019178,2]
[315176656,1708903840218,-500.0,0.00019178,2]
[315176657,1708903840227,-500.0,0.00019178,2]
[315176658,1708903840236,-609.6,0.00019178,2]
[315176659,1708903840245,-506.34387473,0.00019178,2]
[315176660,1708903840254,-500.0,0.00019178,2]
[315176661,1708903840263,-500.0,0.00019178,2]
[315176662,1708903840274,-500.0,0.00019178,2]
[315176663,1708903840286,-500.0,0.00019178,2]
[315176664,1708903840295,-500.0,0.00019178,2]
[315176665,1708903840304,-500.0,0.00019178,2]
[315176666,1708903840314,-500.0,0.00019178,2]
[315176667,1708903840324,-595.43,0.00019178,2]
[315176668,1708903840333,-500.0,0.00019178,2]
[315176669,1708903840343,-500.0,0.00019178,2]
[315176670,1708903840352,-500.0,0.00019178,2]
[315176671,1708903840362,-500.0,0.00019178,2]
[315176672,1708903840371,-500.0,0.00019178,2]
[315176673,1708903840380,-500.0,0.00019178,2]
[315176674,1708903840390,-319.09963093,0.00019178,2]
[315176675,1708903840401,-500.0,0.00019178,2]
[315176676,1708903840410,-500.0,0.00019178,2]
[315176677,1708903840419,-500.0,0.00019178,2]
[315176678,1708903840428,-500.0,0.00019178,2]
[315176679,1708903840438,-500.0,0.00019178,2]
[315176680,1708903840448,-500.0,0.00019178,2]
[315176681,1708903840457,-234.52147682,0.00019178,2]
[315176682,1708903840466,-500.0,0.00019178,2]
[315176683,1708903840479,-500.0,0.00019178,2]
[315176684,1708903840488,-500.0,0.00019178,2]
[315176685,1708903840497,-500.0,0.00019178,2]
[315176686,1708903840506,-500.0,0.00019178,2]
[315176687,1708903840515,-500.0,0.00019178,2]
[315176688,1708903840524,-500.0,0.00019178,2]
[315176689,1708903840533,-500.0,0.00019178,2]
[315176691,1708903840542,-500.0,0.00019178,2]
[315176692,1708903840551,-500.0,0.00019178,2]
[315176693,1708903840560,-500.0,0.00019178,2]
[315176694,1708903840569,-500.0,0.00019178,2]
[315176695,1708903840578,-500.0,0.00019178,2]
[315176696,1708903840588,-500.0,0.00019178,2]
[315176697,1708903840597,-266.29835762,0.00019178,2]
[315176698,1708903840606,-1329.63,0.00019178,2]
[315176699,1708903840615,-500.0,0.00019178,2]
[315176700,1708903840625,-359.75255587,0.00019178,2]
[315176701,1708903840634,-500.0,0.00019178,2]
[315176702,1708903840643,-500.50393287,0.00019178,2]
[315176703,1708903840652,-151.0,0.00019178,2]
[315176704,1708903840662,-500.0,0.00019178,2]
[315176705,1708903840671,-500.0,0.00019178,2]
[315176706,1708903840680,-500.0,0.00019178,2]
[315176707,1708903840690,-199.63994036,0.00019178,2]
[315176708,1708903840699,-500.0,0.00019178,2]
[315176709,1708903840708,-500.0,0.00019178,2]
[315176710,1708903840717,-500.0,0.00019178,2]
[315176711,1708903840727,-500.0,0.00019178,2]
[315176712,1708903840737,-213.91899421,0.00019178,2]
[315176713,1708903840747,-500.0,0.00019178,2]
[315176714,1708903840757,-500.0,0.00019178,2]
[315176715,1708903840766,-501.34536257,0.00019178,2]
[315176716,1708903840775,-500.0,0.00019178,2]
[315176718,1708903840784,-596.37,0.00019178,2]
[315176720,1708903840793,-500.0,0.00019178,2]
[315176722,1708903840802,-500.0,0.00019178,2]
[315176723,1708903840811,-1425.67,0.00019178,2]
[315176725,1708903840820,-500.0,0.00019178,2]
[315176727,1708903840830,-233.97079204,0.00019178,2]
[315176729,1708903840839,-500.0,0.00019178,2]
[315176732,1708903840849,-500.0,0.00019178,2]
[315176733,1708903840858,-500.0,0.00019178,2]
[315176735,1708903840867,-722.27,0.00019178,2]
[315176737,1708903840875,-500.0,0.00019178,2]
[315176739,1708903840884,-500.0,0.00019178,2]
[315176741,1708903840894,-500.0,0.00019178,2]
[315176743,1708903840903,-500.0,0.00019178,2]
[315176745,1708903840912,-417.12961598,0.00019178,2]
[315176747,1708903840921,-500.0,0.00019178,2]
[315176749,1708903840930,-500.0,0.00019178,2]
[315176751,1708903840939,-500.0,0.00019178,2]
[315176753,1708903840949,-500.0,0.00019178,2]
[315176755,1708903840958,-243.58118859,0.00019178,2]
[315176757,1708903840967,-502.09679312,0.00019178,2]
[315176759,1708903840976,-500.0,0.00019178,2]
[315176761,1708903840985,-500.0,0.00019178,2]
[315176763,1708903840994,-500.3023898,0.00019178,2]
[315176765,1708903841003,-527.48064303,0.00019178,2]
[315176767,1708903841012,-502.54439093,0.00019178,2]
[315176769,1708903841021,-500.0,0.00019178,2]
[315176771,1708903841029,-500.0,0.00019178,2]
[315176773,1708903841040,-500.34794336,0.00019178,2]
[315176775,1708903841050,-614.33144161,0.00019178,2]
[315176777,1708903841059,-500.0,0.00019178,2]
[315176779,1708903841068,-500.0,0.00019178,2]
[315176781,1708903841078,-500.0,0.00019178,2]
[315176783,1708903841087,-500.0,0.00019178,2]
[315176785,1708903841096,-500.0,0.00019178,2]
[315176787,1708903841104,-500.29127605,0.00019178,2]
[315176789,1708903841113,-500.0,0.00019178,2]
[315176791,1708903841122,-500.0,0.00019178,2]
[315176793,1708903841132,-500.0,0.00019178,2]
[315176795,1708903841141,-500.0,0.00019178,2]
[315176797,1708903841151,-500.0,0.00019178,2]
[315176798,1708903841160,-1000.0,0.00019178,2]
[315176800,1708903841169,-500.0,0.00019178,2]
[315176802,1708903841178,-231.37028455,0.00019178,2]
[315176804,1708903841187,-500.0,0.00019178,2]
[315176806,1708903841197,-500.0,0.00019178,2]
[315176808,1708903841206,-500.0,0.00019178,2]
[315176810,1708903841215,-500.62885476,0.00019178,2]
[315176812,1708903841224,-500.0,0.00019178,2]
[315176814,1708903841234,-500.0,0.00019178,2]
[315176816,1708903841243,-500.0,0.00019178,2]
[315176818,1708903841253,-500.0,0.00019178,2]
[315176820,1708903841262,-500.0,0.00019178,2]
[315176822,1708903841271,-496.77878203,0.00019178,2]
[315176824,1708903841280,-414.64097226,0.00019178,2]
[315176826,1708903841290,-500.0,0.00019178,2]
[315176828,1708903841300,-2074.3,0.00019178,2]
[315176831,1708903841309,-500.0,0.00019178,2]
[315176832,1708903841318,-409.70428349,0.00019178,2]
[315176834,1708903841327,-500.0,0.00019178,2]
[315176835,1708903841336,-500.0,0.00019178,2]
[315176836,1708903841346,-500.0,0.00019178,2]
[315176837,1708903841355,-604.0350439,0.00019178,2]
[315176838,1708903841364,-500.0,0.00019178,2]
[315176839,1708903841374,-500.0,0.00019178,2]
[315176840,1708903841383,-230.13455929,0.00019178,2]
[315176841,1708903841393,-500.0,0.00019178,2]
[315176842,1708903841405,-500.0,0.00019178,2]
[315176843,1708903841414,-500.50799428,0.00019178,2]
[315176844,1708903841423,-500.0,0.00019178,2]
[315176845,1708903841433,-500.0,0.00019178,2]
[315176846,1708903841442,-500.0,0.00019178,2]
[315176847,1708903841451,-417.98180468,0.00019178,2]
[315176848,1708903841460,-631.02090704,0.00019178,2]
[315176849,1708903841469,-500.0,0.00019178,2]
[315176850,1708903841480,-500.0,0.00019178,2]
[315176851,1708903841490,-500.44554136,0.00019178,2]
[315176852,1708903841499,-1643.7,0.00019178,2]
[315176853,1708903841507,-500.0,0.00019178,2]
[315176854,1708903841516,-500.0,0.00019178,2]
[315176855,1708903841525,-500.0,0.00019178,2]
[315176856,1708903841534,-500.0,0.00019178,2]
[315176857,1708903841543,-500.0,0.00019178,2]
[315176858,1708903841552,-500.0,0.00019178,2]
[315176859,1708903841562,-500.0,0.00019178,2]
[315176860,1708903841571,-500.0,0.00019178,2]
[315176861,1708903841580,-500.0,0.00019178,2]
[315176862,1708903841588,-500.0,0.00019178,2]
[315176863,1708903841597,-500.0,0.00019178,2]
[315176864,1708903841606,-647.50116398,0.00019178,2]
[315176865,1708903841615,-500.0,0.00019178,2]
[315176866,1708903841624,-500.0,0.00019178,2]
[315176867,1708903841634,-500.0,0.00019178,2]
[315176868,1708903841644,-500.0,0.00019178,2]
[315176869,1708903841653,-500.0,0.00019178,2]
[315176870,1708903841662,-500.0,0.00019178,2]
[315176871,1708903841671,-500.0,0.00019178,2]
[315176872,1708903841680,-820.72,0.00019178,2]
[315176873,1708903841689,-935.75,0.00019178,2]
[315176874,1708903841698,-500.0,0.00019178,2]
[315176875,1708903841707,-500.0,0.00019178,2]
[315176876,1708903841716,-500.0,0.00019178,2]
[315176877,1708903841725,-242.68643085,0.00019178,2]
[315176878,1708903841735,-500.0,0.00019178,2]
[315176879,1708903841745,-500.0,0.00019178,2]
[315176880,1708903841754,-500.0,0.00019178,2]
[315176881,1708903841763,-500.0,0.00019178,2]
[315176882,1708903841772,-500.0,0.00019178,2]
[315176883,1708903841781,-500.0,0.00019178,2]
[315176884,1708903841791,-500.0,0.00019178,2]
[315176885,1708903841800,-500.0,0.00019178,2]
[315176886,1708903841810,-500.0,0.00019178,2]
[315176887,1708903841819,-500.0,0.00019178,2]
[315176888,1708903841831,-500.0,0.00019178,2]
[315176889,1708903841841,-500.0,0.00019178,2]